bitfinex/quotes_SOLUSD_20251001
["timestamp","ask_amount","ask_price","bid_price","bid_amount"]
[1759327164512,0.68,219.42,219.35,0.68]
[1759327164712,13.87991715,219.45,219.37,20.8]
[1759327164902,13.87991715,219.45,219.38,0.68]
[1759327165213,14.55991715,219.45,219.38,0.68]
[1759327165600,14.55991715,219.45,219.39,4.55809289]
[1759327166319,13.59559401,219.47,219.4,0.68]
[1759327166516,13.59559401,219.45,219.4,0.68]
[1759327166698,0.68,219.44,219.39,15.95332512]
[1759327166899,0.68,219.43,219.39,20.8]
[1759327167617,13.59559401,219.41,219.33,12.07799643]
[1759327167819,13.59559401,219.39,219.33,12.07799643]
[1759327168117,13.59559401,219.39,219.36,20.8]
[1759327168521,0.68,219.4,219.36,20.8]
[1759327168907,0.68,219.4,219.34,36.75696179]
[1759327169625,13.59559401,219.44,219.37,20.8]
[1759327169799,13.59559401,219.44,219.38,0.68]
[1759327170120,0.68,219.48,219.38,0.68]
[1759327170310,0.1,219.49,219.38,0.68]
[1759327170517,0.1,219.49,219.42,20.8]
[1759327170833,0.1,219.49,219.43,0.68]
[1759327171739,13.59559401,219.47,219.39,12.58917583]
[1759327172038,0.28432314,219.44,219.33,13.59559401]
[1759327172333,0.28432314,219.44,219.33,20.8]
[1759327172334,13.59559401,219.42,219.33,20.8]
[1759327172535,0.28432314,219.39,219.3,0.68]
[1759327172712,0.28432314,219.36,219.3,0.68]
[1759327173210,0.68,219.41,219.3,5.23987001]
[1759327173407,13.59559401,219.4,219.33,20.8]
[1759327173632,13.59559401,219.4,219.34,25.35913194]
[1759327174543,18.1535524,219.4,219.34,20.8]
[1759327174718,13.59559401,219.4,219.34,20.8]
[1759327175635,13.59559401,219.4,219.35,25.35892409]
[1759327175828,13.87991715,219.41,219.35,25.35892409]
[1759327176924,0.1,219.49,219.38,20.8]
[1759327177244,0.68,219.48,219.38,21.48]
[1759327177418,13.59559401,219.47,219.39,0.68]
[1759327177617,0.1,219.49,219.35,15.95623432]
[1759327177618,0.1,219.49,219.41,15.95187091]
[1759327177816,0.1,219.49,219.44,20.8]
[1759327178239,0.1,219.49,219.45,0.68]
[1759327178439,0.1,219.49,219.46,0.68]
[1759327178837,0.78,219.49,219.42,0.68]
[1759327179047,0.1,219.49,219.42,0.68]
[1759327179539,13.59559401,219.47,219.38,0.68]
[1759327180130,13.59559401,219.45,219.38,0.68]
[1759327181245,0.1,219.49,219.38,0.68]
[1759327182143,0.1,219.49,219.41,20.8]
[1759327182340,0.1,219.49,219.42,0.68]
[1759327183949,0.1,219.49,219.45,20.8]
[1759327184255,0.1,219.49,219.46,21.48]
[1759327184850,0.1,219.49,219.47,0.68]
[1759327185056,0.1,219.49,219.42,20.8]
[1759327185229,0.1,219.49,219.44,0.68]
[1759327185430,0.1,219.49,219.45,0.68]
[1759327185737,0.1,219.49,219.46,0.68]
[1759327185942,0.1,219.49,219.47,0.68]
[1759327187350,0.1,219.49,219.48,0.68]
[1759327187538,0.1,219.49,219.43,0.68]
[1759327187742,0.1,219.49,219.46,20.8]
[1759327187938,0.1,219.49,219.47,0.68]
[1759327188255,0.1,219.49,219.46,20.8]
[1759327188256,0.1,219.49,219.48,0.68]
[1759327189355,0.1,219.49,219.46,20.8]
[1759327189653,0.1,219.49,219.39,25.358045]
[1759327189843,0.1,219.49,219.44,0.68]
[1759327190036,0.1,219.49,219.39,25.358045]
[1759327190245,0.1,219.49,219.4,0.68]
[1759327190969,13.59559401,219.47,219.31,9.69552974]
[1759327191257,13.59559401,219.45,219.36,0.68]
[1759327191437,0.28432314,219.47,219.36,0.68]
[1759327192346,13.59559401,219.45,219.36,0.68]
[1759327192758,13.59559401,219.43,219.36,0.68]
[1759327193149,0.68,219.42,219.33,0.68]
[1759327193470,0.68,219.42,219.34,20.8]
[1759327193840,0.68,219.42,219.34,0.65]
[1759327195158,13.59559401,219.41,219.35,0.65]
[1759327196252,13.59559401,219.41,219.32,0.65]
[1759327196574,13.59559401,219.39,219.3,0.65]
[1759327197353,13.59559401,219.37,219.28,0.65]
[1759327197756,13.59559401,219.35,219.28,0.65]
[1759327198261,0.65,219.41,219.28,0.65]
[1759327198473,0.65,219.44,219.29,13.59559401]
[1759327198638,0.1,219.56,219.29,13.59559401]
[1759327198639,0.65,219.43,219.31,20.8]
[1759327198836,0.65,219.43,219.32,0.65]
[1759327199148,0.1,219.52,219.32,0.65]
[1759327199339,13.59559401,219.47,219.36,20.8]
[1759327199541,0.65,219.46,219.37,0.65]
[1759327200077,13.59559401,219.45,219.36,20.8]
[1759327200278,13.59559401,219.43,219.31,0.65]
[1759327200565,13.59559401,219.43,219.32,20.8]
[1759327200757,0.28432314,219.4,219.29,0.65]
[1759327200961,14.24559401,219.41,219.3,0.65]
[1759327201138,0.65,219.45,219.34,20.8]
[1759327201484,0.1,219.52,219.35,0.65]
[1759327201485,0.65,219.44,219.35,0.65]
[1759327201972,0.28432314,219.42,219.24,4.56112292]
[1759327202272,0.28432314,219.39,219.23,0.65]
[1759327202443,13.59559401,219.37,219.23,0.65]
[1759327202641,0.28432314,219.34,219.23,0.65]
[1759327202837,0.65,219.34,219.23,0.65]
[1759327203144,0.65,219.33,219.23,0.65]
[1759327203347,13.59559401,219.32,219.17,0.2]
[1759327203545,13.59559401,219.3,219.21,0.85]
[1759327203772,0.28432314,219.29,219.21,0.2]
[1759327203947,14.24559401,219.33,219.22,0.65]
[1759327204260,13.59559401,219.31,219.21,0.2]
[1759327204468,0.28432314,219.28,219.21,0.2]
[1759327204654,0.65,219.32,219.22,5.21162758]
[1759327204846,13.59559401,219.38,219.25,20.8]
[1759327205046,13.59559401,219.36,219.26,0.65]
[1759327205367,0.65,219.4,219.29,20.8]
[1759327205666,0.65,219.39,219.29,20.8]
[1759327205969,0.28432314,219.36,219.21,0.2]
[1759327206146,0.28432314,219.33,219.21,0.2]
[1759327206343,0.65,219.32,219.22,0.65]
[1759327206664,13.59559401,219.31,219.22,0.65]
[1759327206857,0.65,219.32,219.25,20.8]
[1759327207454,13.59559401,219.31,219.25,20.8]
[1759327207969,13.59559401,219.34,219.25,0.65]
[1759327208469,13.59559401,219.32,219.21,21.0]
[1759327208660,13.59559401,219.3,219.21,21.0]
[1759327208859,0.65,219.35,219.25,20.8]
[1759327209074,0.65,219.35,219.26,0.65]
[1759327209075,13.59559401,219.34,219.26,0.65]
[1759327209577,13.59559401,219.42,219.26,0.65]
[1759327209775,0.14216157,219.39,219.26,0.65]
[1759327209964,0.28432314,219.39,219.26,5.21077912]
[1759327210171,13.59559401,219.37,219.29,20.8]
[1759327210473,13.59559401,219.37,219.29,21.45]
[1759327211048,0.65,219.38,219.3,0.65]
[1759327211466,0.65,219.4,219.3,0.65]
[1759327211684,13.59559401,219.39,219.3,0.65]
[1759327211855,0.65,219.38,219.3,0.65]
[1759327212383,13.59559401,219.41,219.33,20.8]
[1759327212878,13.59559401,219.39,219.28,0.65]
[1759327213062,13.59559401,219.37,219.24,20.8]
[1759327213258,13.59559401,219.37,219.28,21.45]
[1759327213450,0.65,219.43,219.29,0.65]
[1759327213654,13.59559401,219.42,219.29,0.93432314]
[1759327213860,13.59559401,219.4,219.29,0.65]
[1759327214286,0.65,219.41,219.29,0.65]
[1759327214287,0.65,219.39,219.29,0.65]
[1759327214881,0.65,219.39,219.32,20.8]
[1759327215290,0.65,219.44,219.33,0.65]
[1759327215471,13.59559401,219.43,219.33,0.65]
[1759327215668,13.59559401,219.41,219.33,0.65]
[1759327215991,13.59559401,219.41,219.32,20.8]
[1759327216160,0.65,219.4,219.32,20.8]
[1759327216356,0.65,219.4,219.31,0.65]
[1759327216600,0.65,219.4,219.32,0.65]
[1759327217088,0.65,219.4,219.29,20.8]
[1759327217295,0.65,219.39,219.29,20.8]
[1759327217476,0.65,219.38,219.29,20.8]
[1759327217684,13.59559401,219.37,219.28,0.65]
[1759327217861,0.65,219.37,219.28,0.65]
[1759327218181,0.65,219.37,219.27,0.65]
[1759327218370,0.28432314,219.41,219.28,0.65]
[1759327218568,13.59559401,219.39,219.28,0.65]
[1759327218755,13.59559401,219.39,219.3,20.8]
[1759327218962,13.59559401,219.42,219.31,0.65]
[1759327219992,0.69,219.43,219.34,20.8]
[1759327220188,0.69,219.42,219.34,20.8]
[1759327220371,13.59559401,219.4,219.31,0.65]
[1759327220762,0.69,219.39,219.31,0.65]
[1759327221086,0.69,219.39,219.3,20.8]
[1759327221804,0.69,219.38,219.3,20.8]
[1759327222282,13.59559401,219.36,219.27,33.49]
[1759327222768,13.59559401,219.36,219.3,20.8]
[1759327223113,0.69,219.35,219.3,20.8]
[1759327223294,14.28559401,219.38,219.3,21.5]
[1759327224797,13.59559401,219.36,219.3,20.8]
[1759327225005,0.68,219.36,219.3,20.8]
[1759327225983,4.55601098,219.5,219.3,20.8]
[1759327225984,13.59559401,219.4,219.31,0.7]
[1759327226283,13.59559401,219.41,219.31,0.7]
[1759327226687,13.59559401,219.44,219.32,4.55954769]
[1759327226924,0.68,219.43,219.35,20.8]
[1759327227099,0.68,219.43,219.35,21.5]
[1759327227618,0.78,219.49,219.36,0.7]
[1759327227987,13.59559401,219.48,219.36,0.7]
[1759327228190,0.78,219.49,219.39,20.8]
[1759327228509,0.78,219.49,219.4,21.5]
[1759327229080,0.1,219.49,219.4,20.8]
[1759327229293,0.68,219.48,219.39,0.7]
[1759327229489,0.1,219.49,219.43,20.8]
[1759327229918,0.1,219.49,219.44,0.7]
[1759327230207,0.1,219.49,219.45,0.7]
[1759327230631,0.1,219.49,219.42,20.8]
[1759327230632,0.1,219.49,219.46,0.7]
[1759327231000,0.1,219.52,219.5,20.8]
[1759327231214,0.1,219.52,219.51,0.7]
[1759327231382,0.1,219.52,219.51,4.42384085]
[1759327231585,0.1,219.52,219.51,4.40254922]
[1759327231786,0.1,219.54,219.51,4.40254922]
[1759327231985,0.1,219.54,219.52,0.7]
[1759327232213,0.1,219.54,219.53,34.3]
[1759327232422,0.1,219.63,219.53,35.0]
[1759327232720,0.1,219.63,219.56,20.8]
[1759327232924,0.1,219.63,219.57,20.8]
[1759327233102,0.1,219.63,219.57,21.5]
[1759327233294,0.1,219.63,219.58,0.7]
[1759327233620,0.1,219.63,219.59,0.7]
[1759327233786,0.1,219.63,219.6,0.7]
[1759327233989,0.1,219.63,219.61,34.28]
[1759327234222,0.1,219.65,219.64,20.8]
[1759327234639,0.1,219.68,219.65,20.8]
[1759327234847,0.1,219.69,219.65,21.5]
[1759327235017,0.1,219.69,219.66,0.7]
[1759327235342,0.1,219.69,219.67,33.5]
[1759327235646,0.1,219.69,219.68,35.06]
[1759327236528,0.68,219.77,219.68,35.06]
[1759327236733,0.68,219.77,219.69,0.7]
[1759327236937,0.1,219.87,219.69,0.7]
[1759327236938,0.68,219.82,219.69,0.7]
[1759327237143,0.1,219.87,219.71,34.39559401]
[1759327237437,0.68,219.86,219.75,20.8]
[1759327237624,0.68,219.85,219.79,20.8]
[1759327237819,0.1,219.87,219.7,0.7]
[1759327237820,13.59559401,219.83,219.7,0.7]
[1759327238022,0.1,219.87,219.67,32.8]
[1759327238023,0.28432314,219.8,219.71,34.42]
[1759327238237,0.68,219.79,219.74,20.8]
[1759327238536,0.68,219.78,219.74,20.8]
[1759327238738,0.68,219.81,219.74,20.8]
[1759327238936,0.28432314,219.79,219.74,20.8]
[1759327239151,13.59559401,219.78,219.74,20.8]
[1759327239447,0.68,219.79,219.74,20.8]
[1759327239658,0.68,219.78,219.74,20.8]
[1759327239838,18.82507358,219.81,219.74,20.8]
[1759327240036,13.59559401,219.76,219.75,34.44]
[1759327240252,14.55991715,219.76,219.75,34.44]
[1759327240463,0.28432314,219.75,219.67,32.8]
[1759327240752,0.28432314,219.72,219.67,32.8]
[1759327241053,13.59559401,219.7,219.68,33.88]
[1759327241230,0.68,219.72,219.68,33.88]
[1759327241431,18.43081562,219.74,219.68,33.88]
[1759327241630,13.59559401,219.7,219.68,33.88]
[1759327241831,14.27559401,219.69,219.68,33.88]
[1759327242034,14.55991715,219.69,219.67,32.8]
[1759327242237,0.96432314,219.68,219.67,32.8]
[1759327242439,14.55991715,219.68,219.67,67.22]
[1759327242973,19.11199289,219.68,219.67,67.22]
[1759327243532,0.28432314,219.66,219.55,32.78]
[1759327243728,0.28432314,219.63,219.55,32.78]
[1759327244550,0.28432314,219.63,219.56,0.7]
[1759327244754,0.28432314,219.66,219.57,34.4]
[1759327244951,13.59559401,219.67,219.61,20.8]
[1759327245465,13.59559401,219.7,219.61,20.8]
[1759327245960,13.59559401,219.72,219.62,0.7]
[1759327246137,13.59559401,219.72,219.66,20.8]
[1759327246338,0.68,219.79,219.67,0.7]
[1759327246940,13.59559401,219.76,219.68,4.55207574]
[1759327247256,13.59559401,219.76,219.69,34.46]
[1759327247756,0.14216157,219.75,219.69,34.46]
[1759327247932,0.28432314,219.73,219.69,34.46]
[1759327248132,13.59559401,219.74,219.69,34.46]
[1759327248133,13.59559401,219.71,219.69,34.46]
[1759327248435,0.96432314,219.7,219.69,34.46]
[1759327249035,5.51598449,219.7,219.69,34.46]
[1759327249475,18.82725536,219.7,219.69,34.42]
[1759327249684,19.1115785,219.7,219.69,34.42]
[1759327251887,18.4315785,219.7,219.69,34.42]
[1759327252071,13.87991715,219.7,219.69,34.42]
[1759327252271,14.55991715,219.7,219.69,34.42]
[1759327253476,13.87991715,219.7,219.69,34.42]
[1759327253786,14.55991715,219.7,219.69,34.42]
[1759327254477,29.81145704,219.69,219.55,33.45]
[1759327254787,20.8,219.73,219.55,33.45]
[1759327254788,0.28432314,219.62,219.55,32.78]
[1759327254982,13.87991715,219.6,219.55,32.78]
[1759327255165,4.55311205,219.63,219.55,32.78]
[1759327255166,13.87991715,219.58,219.55,32.78]
[1759327255372,14.55991715,219.58,219.55,32.78]
[1759327255571,13.87991715,219.56,219.55,32.78]
[1759327255869,13.87991715,219.56,219.5,20.8]
[1759327255870,0.28432314,219.54,219.45,0.67]
[1759327256074,8.47222941,219.54,219.45,0.67]
[1759327256385,0.28432314,219.52,219.45,20.8]
[1759327256587,8.47222941,219.52,219.42,33.47]
[1759327256883,8.47222941,219.52,219.41,32.78]
[1759327256884,13.59559401,219.48,219.41,37.33766597]
[1759327257080,13.59559401,219.48,219.41,32.78]
[1759327257276,13.59559401,219.48,219.42,34.34]
[1759327257485,13.59559401,219.48,219.47,0.2]
[1759327257998,0.28432314,219.48,219.47,34.54]
[1759327258197,13.59559401,219.49,219.47,34.54]
[1759327258367,8.47222941,219.48,219.47,34.54]
[1759327258567,0.96432314,219.48,219.47,34.54]
[1759327258779,0.28432314,219.48,219.47,34.54]
[1759327259072,13.87991715,219.48,219.47,34.54]
[1759327260093,22.06782342,219.48,219.47,34.54]
[1759327261466,22.06782342,219.48,219.41,32.78]
[1759327261467,0.28432314,219.46,219.41,32.78]
[1759327261666,13.59559401,219.41,219.3,0.67]
[1759327261874,0.28432314,219.4,219.24,0.67]
[1759327262200,0.28432314,219.42,219.24,0.67]
[1759327262201,13.87991715,219.33,219.26,20.8]
[1759327262392,7.50790627,219.32,219.27,0.67]
[1759327262575,7.50790627,219.32,219.26,20.8]
[1759327262772,7.50790627,219.35,219.29,4.56017146]
[1759327263086,13.59559401,219.36,219.3,0.67]
[1759327263595,13.59559401,219.37,219.3,0.67]
[1759327263896,13.59559401,219.41,219.32,20.8]
[1759327264102,13.59559401,219.42,219.36,20.8]
[1759327264490,38.72084547,219.52,219.29,4.56017146]
[1759327264491,13.59559401,219.36,219.29,4.56017146]
[1759327264697,13.59559401,219.36,219.32,20.8]
[1759327264698,7.50790627,219.34,219.32,20.8]
[1759327264901,7.50790627,219.38,219.33,0.67]
[1759327265091,20.8,219.45,219.32,25.35949329]
[1759327265092,7.50790627,219.39,219.34,0.67]
[1759327265289,13.59559401,219.38,219.34,0.67]
[1759327265501,13.59559401,219.38,219.32,25.35949329]
[1759327265706,7.50790627,219.35,219.32,20.8]
[1759327265902,7.50790627,219.35,219.3,34.36]
[1759327265903,7.50790627,219.33,219.3,34.36]
[1759327266115,13.59559401,219.34,219.3,38.91994792]
[1759327266289,7.50790627,219.33,219.3,38.91994792]
[1759327266492,13.59559401,219.38,219.3,50.31985672]
[1759327266694,7.50790627,219.35,219.32,20.8]
[1759327266894,7.50790627,219.33,219.28,5.2302228]
[1759327267094,21.10350028,219.32,219.29,34.4]
[1759327267510,13.59559401,219.32,219.29,34.4]
[1759327267706,21.10350028,219.32,219.29,34.4]
[1759327267910,21.10350028,219.32,219.26,37.43263283]
[1759327267911,7.50790627,219.3,219.26,5.23076732]
[1759327268114,7.50790627,219.31,219.26,20.8]
[1759327268317,7.50790627,219.3,219.27,34.38]
[1759327268616,7.50790627,219.34,219.27,34.38]
[1759327268824,0.68,219.4,219.31,4.55975559]
[1759327269134,13.59559401,219.39,219.32,34.4]
[1759327269295,7.50790627,219.38,219.32,34.4]
[1759327269500,13.59559401,219.32,219.26,20.8]
[1759327269800,13.59559401,219.32,219.27,55.22]
[1759327270114,13.59559401,219.33,219.28,0.67]
[1759327270818,0.96432314,219.36,219.21,32.98]
[1759327270819,7.50790627,219.3,219.23,33.45]
[1759327271139,7.50790627,219.26,219.23,32.78]
[1759327271303,13.59559401,219.25,219.24,34.4]
[1759327271503,21.38782342,219.25,219.24,34.4]
[1759327271802,22.06782342,219.25,219.24,34.4]
[1759327272612,22.06782342,219.25,219.23,32.78]
[1759327272813,14.55991715,219.24,219.23,32.78]
[1759327273126,22.06782342,219.24,219.23,67.2]
[1759327273328,26.62903487,219.24,219.23,67.2]
[1759327274018,22.06782342,219.24,219.23,67.2]
[1759327274408,13.87991715,219.24,219.23,67.2]
[1759327274609,0.28432314,219.24,219.23,67.2]
[1759327274813,0.14216157,219.25,219.23,67.2]
[1759327275326,0.14216157,219.25,219.17,21.0]
[1759327275327,13.73775558,219.23,219.17,0.2]
[1759327275533,21.10350028,219.19,219.18,34.44]
[1759327276334,13.87991715,219.18,219.17,0.2]
[1759327276510,0.96432314,219.18,219.17,34.64]
[1759327277130,14.55991715,219.18,219.17,34.64]
[1759327277438,26.63028349,219.18,219.17,34.64]
[1759327277607,13.87991715,219.17,219.16,1e-08]
[1759327277814,13.87991715,219.17,219.14,0.2]
[1759327278122,28.89572969,219.15,219.14,0.2]
[1759327278304,28.89572969,219.15,219.14,1e-08]
[1759327278511,28.89572969,219.15,219.08,33.02]
[1759327278512,13.87991715,219.14,219.11,34.44]
[1759327278723,21.38782342,219.12,219.11,34.44]
[1759327278928,26.6315328,219.12,219.11,34.44]
[1759327279228,21.38782342,219.12,219.11,34.44]
[1759327279618,22.06782342,219.12,219.11,34.44]
[1759327280241,13.87991715,219.11,219.08,33.02]
[1759327280440,7.50790627,219.1,219.09,34.44]
[1759327280627,21.38782342,219.1,219.09,34.44]
[1759327281030,25.95194938,219.1,219.09,34.44]
[1759327281341,13.87991715,219.09,219.08,33.02]
[1759327281533,14.59991715,219.09,219.08,67.44]
[1759327281926,0.28432314,219.09,219.08,67.44]
[1759327282130,1.00432314,219.09,219.08,34.62]
[1759327282532,0.28432314,219.09,219.08,34.62]
[1759327283343,0.97432314,219.09,219.08,34.62]
[1759327284348,0.28432314,219.09,219.08,34.62]
[1759327284518,8.48222941,219.09,219.08,34.62]
[1759327285255,7.79222941,219.09,219.08,34.62]
[1759327285628,8.48222941,219.09,219.08,34.62]
[1759327285846,14.28559401,219.12,219.08,34.62]
[1759327286050,7.79222941,219.09,219.08,34.62]
[1759327286251,8.48222941,219.09,219.08,34.62]
[1759327286962,8.48222941,219.09,219.03,0.2]
[1759327286963,0.28432314,219.08,219.03,0.2]
[1759327287267,21.38782342,219.04,219.03,0.2]
[1759327287427,25.9531996,219.04,219.03,0.2]
[1759327287627,26.6431996,219.04,219.03,0.2]
[1759327288124,26.6431996,219.04,219.03,33.34]
[1759327288628,13.87991715,219.04,219.03,33.34]
[1759327289036,21.38782342,219.04,219.03,0.2]
[1759327289238,25.9531996,219.04,219.03,34.62]
[1759327289546,21.38782342,219.04,219.03,34.62]
[1759327289747,13.87991715,219.04,219.03,34.62]
[1759327290253,18.93977238,219.04,219.03,34.62]
[1759327290721,13.87991715,219.04,219.03,34.62]
[1759327290925,23.50514856,219.04,219.03,34.62]
[1759327291355,18.93977238,219.04,219.03,34.62]
[1759327291649,13.59559401,219.04,219.03,39.90558462]
[1759327292359,0.69,219.17,219.03,39.90558462]
[1759327292532,5.05985523,219.13,219.04,0.72]
[1759327292732,0.69,219.23,219.06,20.8]
[1759327292938,5.05985523,219.12,219.07,0.72]
[1759327293262,18.65544924,219.1,219.07,0.72]
[1759327293464,18.65544924,219.1,219.06,20.8]
[1759327293465,5.05985523,219.08,219.03,4.76558462]
[1759327293662,5.05985523,219.12,219.05,4.56516776]
[1759327293841,5.05985523,219.12,219.05,15.97808718]
[1759327294037,13.59559401,219.14,219.06,0.72]
[1759327294233,13.59559401,219.12,219.08,20.8]
[1759327294434,13.59559401,219.12,219.09,35.14]
[1759327294660,13.59559401,219.12,219.1,0.72]
[1759327294864,0.14216157,219.14,219.11,0.72]
[1759327295067,5.2020168,219.14,219.12,0.72]
[1759327295273,0.14216157,219.14,219.09,35.14]
[1759327295461,13.59559401,219.15,219.1,0.72]
[1759327295782,5.05985523,219.18,219.11,5.28388909]
[1759327295955,13.59559401,219.17,219.12,0.72]
[1759327296160,5.05985523,219.19,219.13,0.72]
[1759327296360,18.65544924,219.18,219.14,34.38]
[1759327296582,18.65544924,219.18,219.14,35.1]
[1759327296882,13.59559401,219.18,219.15,0.72]
[1759327297085,13.59559401,219.18,219.16,0.72]
[1759327297392,5.05985523,219.22,219.17,0.72]
[1759327297693,9.62106668,219.24,219.17,26.0825939]
[1759327297877,5.05985523,219.22,219.17,21.52]
[1759327298061,5.05985523,219.22,219.18,35.08]
[1759327298264,5.05985523,219.22,219.19,0.72]
[1759327298464,5.05985523,219.2,219.18,34.36]
[1759327298687,4.56121145,219.24,219.15,20.8]
[1759327298688,13.59559401,219.18,219.15,20.8]
[1759327298890,5.05985523,219.22,219.16,34.36]
[1759327299062,0.28432314,219.23,219.16,34.36]
[1759327299063,5.05985523,219.2,219.16,34.36]
[1759327299397,13.59559401,219.2,219.17,0.72]
[1759327299612,13.59559401,219.21,219.18,0.72]
[1759327299770,5.05985523,219.2,219.15,20.8]
[1759327300095,5.05985523,219.22,219.16,35.08]
[1759327300276,5.05985523,219.22,219.17,0.72]
[1759327300477,13.59559401,219.18,219.16,34.36]
[1759327300793,13.59559401,219.18,219.16,35.08]
[1759327300963,13.87991715,219.23,219.16,35.08]
[1759327301159,13.59559401,219.16,219.12,38.14366918]
[1759327301364,13.59559401,219.16,219.13,35.06]
[1759327301564,13.59559401,219.17,219.13,39.62345828]
[1759327301766,18.4411286,219.24,219.14,0.72]
[1759327301980,13.59559401,219.22,219.16,20.8]
[1759327302197,4.84553459,219.24,219.17,35.04]
[1759327302490,9.62068091,219.26,219.18,0.72]
[1759327302689,5.05985523,219.27,219.2,20.8]
[1759327302879,13.59559401,219.27,219.21,35.04]
[1759327303304,18.65544924,219.27,219.21,35.04]
[1759327303492,18.65544924,219.28,219.21,35.04]
[1759327303680,0.28432314,219.27,219.21,39.60173634]
[1759327304410,32.88794266,219.34,219.22,0.72]
[1759327304608,18.65544924,219.32,219.24,20.8]
[1759327304784,13.59559401,219.32,219.25,35.0]
[1759327304983,13.59559401,219.34,219.28,20.8]
[1759327305284,13.59559401,219.35,219.29,35.0]
[1759327305496,11.39498501,219.4,219.29,35.0]
[1759327305497,0.79,219.42,219.3,0.72]
[1759327305823,13.59559401,219.38,219.31,4.55975559]
[1759327305987,0.1,219.42,219.33,20.8]
[1759327306189,5.15985523,219.42,219.34,35.0]
[1759327306374,5.15985523,219.42,219.37,20.8]
[1759327306803,5.05985523,219.41,219.37,20.8]
[1759327306998,13.59559401,219.4,219.37,21.52]
[1759327307405,13.59559401,219.4,219.37,20.8]
[1759327307907,13.59559401,219.38,219.37,20.8]
[1759327308203,5.05985523,219.4,219.37,55.06]
[1759327308408,4.55775168,219.41,219.37,55.06]
[1759327308719,0.1,219.42,219.38,0.72]
[1759327308918,0.1,219.42,219.39,0.72]
[1759327309210,0.1,219.42,219.37,55.78]
[1759327309511,0.1,219.42,219.38,0.72]
[1759327309729,13.59559401,219.41,219.38,0.72]
[1759327309905,13.59559401,219.41,219.37,55.06]
[1759327309906,0.1,219.42,219.39,0.72]
[1759327310106,0.1,219.42,219.4,0.72]
[1759327310307,0.1,219.42,219.41,34.94]
[1759327310651,13.69559401,219.42,219.41,34.22]
[1759327310941,0.28432314,219.41,219.35,20.8]
[1759327311123,13.59559401,219.38,219.36,34.2]
[1759327311321,13.59559401,219.38,219.36,34.92]
[1759327311738,13.59559401,219.39,219.36,34.92]
[1759327312119,13.59559401,219.37,219.33,0.72]
[1759327312440,18.65544924,219.37,219.34,34.18]
[1759327312645,5.05985523,219.36,219.34,34.18]
[1759327313010,5.05985523,219.36,219.32,32.84]
[1759327313218,5.05985523,219.36,219.35,34.18]
[1759327313508,5.05985523,219.38,219.35,34.18]
[1759327314026,5.05985523,219.39,219.35,34.86]
[1759327314227,13.59559401,219.4,219.36,0.68]
[1759327314435,13.97991715,219.42,219.36,0.68]
[1759327314616,5.05985523,219.4,219.36,0.68]
[1759327316036,13.69559401,219.42,219.35,54.98]
[1759327316220,0.1,219.42,219.37,0.68]
[1759327317229,0.1,219.42,219.4,20.8]
[1759327317534,0.1,219.42,219.41,34.78]